Workbook

Sheet Hinweise
A1: Hinweise:
A3: - | B3: Positionen mit 0,00€ nicht löschen, sondern bestehen lassen -> es könnte sein, dass diese Posten in den folgenden Jahren wieder benötigt werden und auch damit nicht in Vergessenheit gerät, was es mal gab
A7: - | B7: Die Summe der fortgeschriebenen finanziellen Mittel müssen immer manuell ins Deckblatt des nächsten Haushaltsjahres eingetragen werden.
A8: - | B8: Die Auflistung der fortgeschriebenen finanziellen Mittel im Detailblatt 1 und in den einzelnen Referaten dient als Übersicht, welcher Betrag übernommen werden muss.
A10: - | B10: Somit bildet die Spalte "Übertrag ins nächste HH-Jahr" des jeweiligen Jahres das "Nachrangig verwendbares Vj.-Budget" des nächsten Jahres.
A11: - | B11: Die Spalte "Zurückführung" errechnet sich aus dem nicht verwendeten "Nachrangigen Vj..-Budget" und gilt immer für das nächste Jahr.
A15: - | B15: WICHTIG:
B16: Der Haushaltsplan des Vorjahres, welcher maßgeblich für die Zahlen des neu geplanten Haushaltsplans ist, muss nach Abschluss des ersten Quartals endgültig auf die IST-Werte angepasst werden.
B17: Daraus sollte sich der erste Nachtragshaushalt ergeben, woraus sich wiederum eine Anpassung des Semesterbeitrags für das WS ergeben könnte.
B19: Für die Ermittlung der angeordneten Vermögensänderung des StuRa werden die geplanten Einnahmen als Obergrenze zu Grunde gelegt. Als Einnahmen werden dabei die vom Deckblatt berücksichtigt.
B20: Die Einnahmen aus der Selbstverwaltung, die Zinsen und die Beitragseinnahmen der Studierenden abzüglich der Zurückführung an Studierende.
B21: Den daraus ermittelten Einnahmen werden die noch verfügbaren finanziellen Mittel entgegengestellt, sind diese größer als die geplanten Einnahmen, so ergibt sich die Vermögensänderung auf der Einnahmenseite.
B22: Für die Ermittlung der angeordneten Vermögensänderung des StuRa auf der Ausgabenseite, werden die verfügbaren finanziellen Mittel mit der Mindestreserve verglichen.
B23: Sind diese kleiner als die Mindestreserve, so bildet die Differenz den Betrag der Vermögensänderung.

Sheet Deckblatt
A1: Haushaltsplan Student:innenschaft HTW Dresden | B1: 2026 | C1: Einnahmen | F1: Ausgaben
C2: PLAN | D2: IST | E2: SALDO | F2: PLAN | G2: IST | H2: SALDO
A3: Selbstverwaltung | C3: ='Detailblatt I'!J57 -> 44450 | D3: ='Detailblatt I'!K57 -> 0 | E3: =D3-C3 -> -44450 | F3: ='Detailblatt I'!M57 -> 333706 | G3: ='Detailblatt I'!N57 -> 0 | H3: =(F3-G3) -> 333706
A4: Beitragseinnahmen der Studentinnen | C4: ='Detailblatt II'!F26 -> 223000 | D4: ='Detailblatt II'!G26 -> 41175.33333 | E4: -181824.6667 | F4: ='Detailblatt II'!I26 -> 0 | G4: ='Detailblatt II'!J26 -> 0 | H4: =(F4-G4) -> 0
A5: Zinsen | C5: ='Detailblatt II'!F30 -> 3000 | D5: ='Detailblatt II'!G30 -> 0 | E5: -3000 | F5: ='Detailblatt II'!I30 -> 800 | G5: ='Detailblatt II'!J30 -> 0 | H5: =(F5-G5) -> 800
A6: Entnahme (=Einnahme) & Ansparen (=Ausgabe) von Vermögen | C6: =IF((Beitragsermittlung!B16)-('Detailblatt II'!F24+'Detailblatt II'!F25)>0,(Beitragsermittlung!B16)-('Detailblatt II'!F24+'Detailblatt II'!F25),0) -> 586 | D6: 0 | E6: -586 | F6: 0 | G6: ='Detailblatt II'!G31 -> 0 | H6: =(F6-G6) -> 0
A7: angeordnete Vermögensänderung lt. FO | C7: =Beitragsermittlung!B14 -> 0 | E7: 0 | F7: ='Detailblatt II'!I29 -> 0 | H7: =(F7-G7) -> 0
A8: Zurückführung an Studentinnen (StuRa) | C8: 63470 | D8: =C8 -> 63470 | E8: 0
A10: Gesamt: | C10: =SUM(C3:C9) -> 334506 | D10: =SUM(D3:D9) -> 104645.3333 | E10: -229860.6667 | F10: 334506 | G10: 0 | H10: 334506
A11: Berechnung des Semesterbeitrages:
B12: Planausgaben: | C12: =F10 -> 334506 | E12: In Zeile F6 (Ansparung) manuell einzutragen: | H12: =IF(Deckblatt!C10-Deckblatt!F10>0,Deckblatt!C10-Deckblatt!F10+F6,IF(C10=F10,"Haushaltsplan ist ausgeglichen!","Haushaltsplan ist nicht ausgeglichen!")) -> Haushaltsplan ist ausgeglichen!
A13: - | B13: Planeinnahmen: | C13: =C3+C5 -> 47450
A14: - | B14: Zurückführung: | C14: =C8+C9 -> 63470
A15: - | B15: Vermögensänderung | C15: =C7 -> 0
A16: = | B16: Gesamt: | C16: =C12-C13-C14-C15-F6 -> 223586
A17: / | B17: Beitragszahlungen/Jahr: | C17: ='Detailblatt II'!D24+('Detailblatt II'!D25/6*4) -> 7400
A18: = | B18: Stud./Semester: | C18: =IF((C16-'Detailblatt II'!F23)/Deckblatt!C17<0,0,(C16-'Detailblatt II'!F23)/Deckblatt!C17) -> 24.57918919 | D18: Anzusetzender Semesterbeitrag: | F18: =ROUND((C18*2),0)/2 -> 24.5

Sheet Beitragsermittlung
A1: Ermittlung des Beitrages in Bezug auf die angeordnete Vermögensänderung
A3: Geplante Einnahmen | B3: =Deckblatt!F10-Deckblatt!C8-Deckblatt!C9-Deckblatt!F6 -> 271036
A4: verfügbare finanzielle Mittel | B4: ='fortgeschr. Mittel+Konto'!D9 -> 244627.64
A5: Obergrenze finanzielle Mittel | B5: =IF(B3<B4,B3,B4) -> 244627.64
A7: Vorgesehene Vermögenssenkung wegen zu hoher verfügbarer finanzieller Mittel | B7: =IF(Beitragsermittlung!B4>Deckblatt!F10-Deckblatt!F6,Beitragsermittlung!B4-Beitragsermittlung!B5,0) -> 0
A8: Mindestreserve | B8: =Mindestreserve!D18 -> 152910
A9: (Verfügbare finanzielle Mittel nach Vermögenssenkung) | B9: =B4-B7 -> 244627.64
A10: Untergrenze für verfügbare finanzielle Mittel durch Bemessung an der Mindestreserve wird erreicht | B10: =IF(B5<B8,B8,B5) -> 244627.64
A11: beabsichtigte Senkung der verfügbaren finanziellen Mittel | B11: =B4-B10 -> 0
A13: Obergrenze für verpflichtende Vermögenssenkung entgegen der (negativen) Erhebung von Beiträgen | B13: =IF(Beitragsermittlung!B11>(Deckblatt!F10-Deckblatt!F6-(Deckblatt!C3+Deckblatt!C5+Deckblatt!C8+Deckblatt!C9+'Detailblatt II'!F23)),Deckblatt!F10-Deckblatt!F6-(Deckblatt!C3+Deckblatt!C5+Deckblatt!C8+Deckblatt!C9+'Detailblatt II'!F23),Beitragsermittlung!B11) -> 0
A14: Vermögenssenkung wegen übermäßig verfügbarer finanzieller Mittel ohne negativen Semesterbeitrag | B14: =IF(B13<0,0,B13) -> 0
A16: restlich zu vereinnahmender Semesterbeitrag ab dem nächsten Sommersemester | B16: =(Deckblatt!F3+Deckblatt!F5+Deckblatt!F7+Deckblatt!F4)-(Deckblatt!C13+Deckblatt!C14+Deckblatt!C15+'Detailblatt II'!F23) -> 181886

Sheet Berechnung Lohnkosten
A1: Berechnung der anfallenden Lohnkosten in Abhängigkeit der besetzten Stellen
A3: langfristige Stellen | H3: mittelfristige Stellen | K3: Besetzungsgrad mittelfristige Stellen
B4: Fina. u. Verw. | C4: Assi. d. GF. | D4: Assi. d. GF | E4: Einarb. Assi. d. GF | K4: max. mögliche Stellen h/M | L4: =6*40 -> 240
A5: TVL (50%) | B5: E7 Stufe 4 | C5: E9b Stufe 4 | D5: E9b Stufe 3 | E5: E9b Stufe 4 | K5: geschaffene Stellen h/M | L5: 240
A6: Vertragsdauer | B6: unbefristet | C6: 01.2026 - 10.2026 | D6: 11.2026 - 12.2026 | E6: 11.2026 - 12.2026 | H6: Brutto je Stunde | I6: 13.98 | K6: „Schaffungsgrad“ | L6: =L5/L4 -> 1
A7: Bruttoverdienst | B7: =3678.84*(3/4) -> 2759.13 | C7: =4366.72*(3/4) -> 3275.04 | D7: =3925.17*(3/4) -> 2943.8775 | E7: =4366.72/2 -> 2183.36 | H7: Brutto pro Monat | I7: =I6*40 -> 559.2 | K7: voraussichtlicher Besetzungsgrad | L7: 0.8
K8: entspricht besetzte Stellen h/M | L8: =L7*L5 -> 192
A9: Nebenkosten | H9: Nebenkosten
A10: Rentenversicherung | B10: =B7*0.0863 -> 238.112919 | C10: =C7*0.09 -> 294.7536 | D10: =D7*0.09 -> 264.948975 | E10: 196.5024 | H10: 15% Rentenvers. Pauschal | I10: =I$7*0.15 -> 83.88
A11: Arbeitslosenversicherung | B11: =B7*0.0132 -> 36.420516 | C11: =C7*0.013 -> 42.57552 | D11: =D7*0.013 -> 38.2704075 | E11: 28.38368 | H11: 13% Krankenvers. Pauschal | I11: =I$7*0.13 -> 72.696
A12: Krankenversicherung | B12: =B7*0.0941 -> 259.634133 | C12: =C7*0.093 -> 304.57872 | D12: =D7*0.093 -> 273.7806075 | E12: 203.05248 | H12: 2% Steuerpauschale | I12: =I$7*0.02 -> 11.184
A13: Pflegeversicherung | B13: =B7*0.0134 -> 36.972342 | C13: =C7*0.013 -> 42.57552 | D13: =D7*0.013 -> 38.2704075 | E13: 28.38368 | H13: 0,9% Umlage 1 U1 | I13: =I$7*0.009 -> 5.0328
A14: Umlage U1 | B14: =B7*0.02 -> 55.1826 | C14: =C7*0.02 -> 65.5008 | D14: =D7*0.02 -> 58.87755 | E14: 43.6672 | H14: 0,29% Umlage 2 U2 | I14: =I$7*0.0029 -> 1.62168
A15: Umlage U2 | B15: =B7*0.0019 -> 5.242347 | C15: =C7*0.012 -> 39.30048 | D15: =D7*0.012 -> 35.32653 | E15: 26.20032 | H15: 0,06% Umlage 3 U3 | I15: =I$7*0.0006 -> 0.33552
A16: Umlage U3 | B16: =B7*0.0042 -> 11.588346 | C16: =C7*0.0043 -> 14.082672 | D16: =D7*0.0043 -> 12.65867325 | E16: 9.388448 | H16: 1,3% Unfallversicherung | I16: =I$7*0.013 -> 7.2696
A17: Unfallversicherung (BG) | B17: =B7*0.015 -> 41.38695 | C17: =C7*0.015 -> 49.1256 | D17: =D7*0.015 -> 44.1581625 | E17: 32.7504
A18: Summe Lohnnebenk. | B18: =SUM(B10:B17) -> 684.540153 | C18: =SUM(C10:C17) -> 852.492912 | D18: =SUM(D10:D17) -> 766.2913133 | E18: 568.328608 | H18: Summe Lohnnebenk. | I18: =SUM(I10:I16) -> 182.0196
A20: Bruttolohnkosten monatl. | B20: =B7+B18 -> 3443.670153 | C20: =C7+C18 -> 4127.532912 | D20: =D7+D18 -> 3710.168813 | E20: =E7+E18 -> 2751.688608 | H20: Bruttolohnkosten monatl. | I20: =I18+I7 -> 741.2196
A21: Jahressonderzahlung | B21: =B20*0.8814 -> 3035.250873 | C21: =C20*0.7435*(10/12) -> 2557.3506 | D21: =D20*0.7435*(2/12) -> 459.7517521 | E21: =E20*0.7435*(2/12) -> 340.98008
A25: Bruttolohnkosten jährl. | B25: =B20*12+B21 -> 44359.29271 | C25: =C20*10+C21 -> 43832.67972 | D25: =D20*2+D21 -> 7880.089379 | E25: =E20*2+E21 -> 5844.357296 | I25: =(I20*(L8/40))*12 -> 42694.24896 | K25: Kosten Lohnbüro jährl. | L25: 3000
A27: Jahresgesamtkosten | B27: =B25+C25+D25+E25+I25+L25 -> 147610.6681

Sheet Überprüfung Beitragserhebung
A1: Überprüfung der Beitragserhebung während des laufenden Kalenderjahres | E1: Jahr - | F1: =Deckblatt!B1 -> 2026 | J1: Wintersemester
A3: Sachkontonr.
A4: 1200 | B4: Bankbestand
A5: 1210 | B5: Bank Zinsaktiv
A6: 1220 | B6: Paypal-Konto
A7: 1000 | B7: Kassenbestände
A8: 1010 | B8: Kasse Kino-Eintritt
A9: 1020 | B9: Kasse Kino-Snack
A10: 1368&1369 | B10: Corona-Fonds (verrechnet)
A11: 1591 | B11: Semesterticket
A12: 1734 | B12: sonstige notwendige Bereinigungen (Kautionen)
B13: Geldbestand | J13: =SUM(J4:J12) -> 0
B14: Mindestreserve | J14: =-(Mindestreserve!$D$18) -> -152910
B15: Planausgaben | J15: =-('Detailblatt I'!$O$57) -> -333706
B16: nachrangig verwendbares Vorjahresbudget | J16: =-('Detailblatt I'!$P$57) -> -67210
B17: ->davon verwendet | J17: ='Detailblatt I'!$Q$57 -> 0
B18: bereinigter Geldbestand | J18: =SUM(J13:J17) -> -553826
B19: Planeinnahmen | J19: =-('Detailblatt I'!$L$57) -> 44450
B20: voraussichtliche Beitragseinnahmen | J20: =-('Detailblatt II'!$H$25) -> 78400
B21: voraussichtlicher bereinigter Geldbestand | J21: =SUM(J18:J20) -> -430976
B22: durch Semesterbeitrag auszugleichender Geldbestand | J22: =J18+J19 -> -509376
B23: neuer Semesterbeitrag | J23: =ROUNDUP(-(J22/'Detailblatt II'!$D$25/4*6)/5,1)*5 -> 159.5
B24: durch Semesterbeitrag auszugleichender Geldbestand bei 50% Planeinnahmen | J24: =J18+J19/2 -> -531601
B25: neuer Semesterbeitrag bei Erfüllung von 50% der Planeinnahmen | J25: =ROUNDUP(-(J24/'Detailblatt II'!$D$25/4*6)/5,1)*5 -> 166.5
B26: voraussichtlicher bereinigter Geldbestand bei 50% Planeinnahmen | J26: =J24+J20 -> -453201
B27: durch Semesterbeitrag auszugleichender Geldbestand bei 25% Planeinnahmen | J27: =J18+J19/4 -> -542713.5
B28: neuer Semesterbeitrag bei Erfüllung von 25% der Planeinnahmen | J28: =ROUNDUP(-(J27/'Detailblatt II'!$D$25/4*6)/5,1)*5 -> 170
B29: voraussichtlicher bereinigter Geldbestand bei 25% Planeinnahmen | J29: =J27+J20 -> -464313.5

Sheet fortgeschr. Mittel+Konto
A1: Fortgeschriebene finanzielle Mittel + Bankkontostand | C1: Jahr - | D1: =Deckblatt!B1 -> 2026
F2: Nr. | G2: voraussichtliche Ausgaben | I2: Saldo
B3: Position | C3: erstellt am: | D3: 2025-11-12 | F3: 1. | G3: Personal (Okt.+Nov.+Dez. inkl. 13.Gehalt, ACON, Finanzamt) | I3: 55000
B4: Bank-/Kassenbestand bei Haushaltsplanerstellung | D4: =13983.57+75+75+31+50+96546.63+1404550.17+4293.91 -> 1519605.28
A5: - | B5: abzgl. voraussichtliche Ausgaben in | C5: =D1-1 -> 2025 | D5: =I25*(-1) -> -1102597.64 | F5: 2. | G5: Finanzbeschlüsse aktuell noch nicht bezahlt in Summe | I5: =1700+2000+700+200+400+30+2800 -> 7830
A6: - | B6: nachrangig verwendbares Vorjahresbudget | D6: ='Detailblatt I'!P57*(-1)-'Detailblatt I'!Q57*(-1) -> -67210
A7: - | B7: Zurückführung an Student:innen gesamt | D7: =SUM(Deckblatt!C8:C9)*-1 -> -63470 | F7: 3. | G7: Schulungen/Konferenzen (KoSe) | I7: 0
A8: - | B8: Beitragseinnahmen anteilig WS 24/25 für 2025 | D8: ='Detailblatt II'!F23*-1 -> -41700 | F8: 4. | G8: voraussichtliche AE | I8: 10000
A9: = | B9: verfügbare finanzielle Mittel | D9: =D4+D5+D6+D7+D8 -> 244627.64 | F9: 5. | G9: offene Härtefallanträge | I9: 0
F10: 6. | G10: Software-Abos (AGENDA etc.) | I10: =89.25*3 -> 267.75
F11: 7. | G11: Kosten für Wartung (Drucker etc.) | I11: 130
F12: 8. | G12: Kontoführung | I12: =3*20 -> 60
F13: 9. | G13: Kino in der HTW & Co. | I13: 84
F14: 10. | G14: Kosten für Wahlen | I14: 0
F15: 11. | G15: Kaffeebestellung(en) | I15: 320
F16: 12. | G16: Ersatz- & Neuanschaffung | I16: 500
F17: 13. | G17: wahrscheinlich noch zu beschließende Finanzanträge | I17: 1000
F19: 14. | G19: Semesterticket Konto 1591 & 1592 | I19: =71061.6+956344.29 -> 1027405.89
F21: 15. | G21: Konto 1704 | I21: 0
F22: 16. | G22: Konto 1450 (-) | I22: 0
F23: 17. | G23: Kaution 1734 | I23: 0
F24: 18. | G24: Nothilfefonds saldiert | I24: 0
F25: = | G25: Gesamtsumme: | I25: =SUM(I3:I24) -> 1102597.64

Sheet Mindestreserve
A1: Mindestreserve | D1: Jahr - | E1: =Deckblatt!B1 -> 2026 | F1: Berechnungsgrundlage ist die aktuelle Finanzordnung (FO)
G2: - alle vertraglich festgeschriebenen Vereinbarungen müssen durch die Kapitalreserve abgedeckt sein
A3: vertragliche Vereinbarungen | D3: Planausgaben
A4: Student:innenrat
A5: Lohnkosten (Detailblatt I - Zelle M7) | D5: ='Detailblatt I'!M6 -> 150000
A6: Korrektur für "SHK"-Stellen | D6: 0
A7: …aktuell ohne Belegung… | D7: ------
A8: …aktuell ohne Belegung… | D8: ------
A9: Referat Finanzen
A10: Kontoführungsgebühren | D10: =Finanzen!G3 -> 600
A11: Buchhaltungssoftware AGENDA | D11: =Finanzen!G4 -> 1100
A12: …aktuell ohne Belegung… | D12: ------
A13: Referat Selbstverwaltung & Organisation
A14: Domains | D14: ='Verwaltung@'!F4 -> 80
A15: laufende Kosten für Druck | D15: ='Verwaltung@'!F13 -> 550
A16: Simkarten | D16: ='Verwaltung@'!F3 -> 180
A17: Versicherung Beachvolleyballplätze | D17: ='Verwaltung@'!F6 -> 400
A18: Gesamt: | D18: =SUM(D5:E17) -> 152910

Sheet Detailblatt I
A1: Detailblatt I | E1: Jahr - | F1: =Deckblatt!B1 -> 2026 | J1: Einnahmen | M1: Ausgaben | P1: nachrangig verwendbares Vj. Budget | Q1: davon verwendet | R1: Zuführung "Fortgeschr. finanz. Mittel" | S1: Übertrag ins nächste HH-Jahr
J2: PLAN | K2: IST | L2: SALDO | M2: PLAN | N2: IST | O2: SALDO
A3: Selbstverwaltung der Studentinnenschaft HTW Dresden
A4: Sachkontonr.
A5: 2749 | B5: Angestellte | C5: AAG (Aufwendungsausgleichsgesetz) | K5: 0 | L5: =K5 -> 0
A6: 4120 | C6: Gehälter | M6: 150000 | N6: 0 | O6: =M6-SUM(N6:N11)+L5 -> 150000
A7: 4121 | C7: Lohnsteuer | N7: 0
A8: 4170 | C8: Vermögenswirksame Leistungen | N8: 0
A9: 4130 | C9: gesetzliche soziale Aufwendungen | N9: 0
A10: 4138 | C10: Beitrag Berufsgenossenschaft | N10: 0
A11: 4956 | C11: Lohnbüro | N11: 0
A12: 4110 | B12: Aufwandsentschädigungen Exekutive | M12: 35000 | N12: 0 | O12: =M12-N12 -> 35000
B13: Aufwandsentschädigungen Legislative | M13: 9000 | N13: 0 | O13: 9000
A14: 4640 | B14: Kaffee und Verpflegung | M14: 1700 | N14: 0 | O14: 1700
B15: Verbrauchsgüter | M15: 300 | N15: 0 | O15: =M15-N15 -> 300
A16: 4670 | B16: Allgemeine Reisekosten (keiner Veranstaltung zugeordnet) | M16: 500 | N16: 0 | O16: 500
B17: Karten Semesterticket | M17: 200 | N17: 0 | O17: 200
B18: Rückerstattung Semesterticket für studienbedingte Aufenthalte | M18: 6100 | N18: 0 | O18: =M18-N18 -> 6100
A19: 4930 | B19: Büro- und Verbrauchsmaterialien | M19: 0 | N19: 0 | O19: =M19-N19 -> 0 | P19: 50 | Q19: =IF(O19<0,IF(P19>0,IF((O19*(-1))>P19,P19,O19*(-1)),0),0) -> 0 | R19: =IF(OR(Q19>P19,O19+P19<0),MAKRO1(),ROUNDDOWN(P19-Q19,-1)) -> 50 | S19: =IF(O19>0,ROUNDDOWN(O19,-1),0) -> 0
A20: 4943 | B20: Teilnahme Konferenzen | M20: 2000 | N20: 0 | O20: =M20-N20 -> 2000 | P20: 2000 | Q20: =IF(O20<0,IF(P20>0,IF((O20*(-1))>P20,P20,O20*(-1)),0),0) -> 0 | R20: =IF(OR(Q20>P20,O20+P20<0),MAKRO1(),ROUNDDOWN(P20-Q20,-1)) -> 2000 | S20: =IF(O20>0,ROUNDDOWN(O20,-1),0) -> 2000
A21: 4944 | B21: Teilnahme Schulungen | M21: 3500 | N21: 0 | O21: =M21-N21 -> 3500 | P21: 250 | Q21: =IF(O21<0,IF(P21>0,IF((O21*(-1))>P21,P21,O21*(-1)),0),0) -> 0 | R21: =IF(OR(Q21>P21,O21+P21<0),MAKRO1(),ROUNDDOWN(P21-Q21,-1)) -> 250 | S21: =IF(O21>0,ROUNDDOWN(O21,-1),0) -> 3500
A22: 4945 | B22: Durchführung Konferenzen | J22: ='Detailblatt II'!F21 -> 1500 | K22: ='Detailblatt II'!G21 -> 0 | L22: ='Detailblatt II'!H21 -> -1500 | M22: ='Detailblatt II'!I21 -> 3500 | N22: ='Detailblatt II'!J21 -> 0 | O22: ='Detailblatt II'!K21 -> 3500 | P22: ='Detailblatt II'!L21 -> 3500 | Q22: ='Detailblatt II'!M21 -> 0 | R22: ='Detailblatt II'!N21 -> 3500 | S22: ='Detailblatt II'!O21 -> 3500
A23: 4950 | B23: Rechts- und Beratungskosten | M23: 3000 | N23: 0 | O23: =M23-N23 -> 3000 | P23: 3000 | Q23: =IF(O23<0,IF(P23>0,IF((O23*(-1))>P23,P23,O23*(-1)),0),0) -> 0 | R23: =IF(OR(Q23>P23,O23+P23<0),MAKRO1(),ROUNDDOWN(P23-Q23,-1)) -> 3000 | S23: =IF(O23>0,ROUNDDOWN(O23,-1),0) -> 3000
A24: 4989 | B24: Ersatz- und Neuanschaffung | M24: 5000 | N24: 0 | O24: =M24-N24 -> 5000 | P24: 1070 | Q24: =IF(O24<0,IF(P24>0,IF((O24*(-1))>P24,P24,O24*(-1)),0),0) -> 0 | R24: =IF(OR(Q24>P24,O24+P24<0),MAKRO1(),ROUNDDOWN(P24-Q24,-1)) -> 1070 | S24: =IF(O24>0,ROUNDDOWN(O24,-1),0) -> 5000
A25: Zwischensumme: | J25: =SUM(J5:J24) -> 1500 | K25: 0 | L25: -1500 | M25: 219800 | N25: 0 | O25: 219800 | P25: =SUM(P19:P24) -> 9870 | Q25: =SUM(Q19:Q24) -> 0 | R25: =SUM(R19:R24) -> 9870 | S25: =SUM(S19:S24) -> 17000
A26: Referate
A27: 4960 | B27: Finanzen | J27: =Finanzen!D8 -> 0 | K27: =Finanzen!E8 -> 0 | L27: =K27-J27 -> 0 | M27: =Finanzen!G8 -> 3250 | N27: =Finanzen!H8 -> 0 | O27: =M27-N27 -> 3250
A28: 4961 | B28: Hochschulpolitik | J28: =Hochschulpolitik!C9 -> 1400 | K28: =Hochschulpolitik!D9 -> 0 | L28: -1400 | M28: =Hochschulpolitik!F9 -> 4300 | N28: =Hochschulpolitik!G9 -> 0 | O28: 4300 | P28: =Hochschulpolitik!I9 -> 3090 | Q28: =Hochschulpolitik!J9 -> 0 | R28: =Hochschulpolitik!K9 -> 3090 | S28: =Hochschulpolitik!L9 -> 4300
A29: 4962 | B29: Internationales | J29: =Internationales!C6 -> 0 | K29: =Internationales!D6 -> 0 | L29: 0 | M29: =Internationales!F6 -> 1350 | N29: =Internationales!G6 -> 0 | O29: 1350 | P29: =Internationales!I6 -> 100 | Q29: =Internationales!J6 -> 0 | R29: =Internationales!K6 -> 100 | S29: =Internationales!L6 -> 1100
A30: 4963 | B30: Kultur | J30: =Kultur!C15 -> 26850 | K30: =Kultur!D15 -> 0 | L30: -26850 | M30: =Kultur!F15 -> 28400 | N30: =Kultur!G15 -> 0 | O30: 28400 | P30: =Kultur!I15 -> 18930 | Q30: =Kultur!J15 -> 0 | R30: =Kultur!K15 -> 18930 | S30: =Kultur!L15 -> 28150
A31: 4964 | B31: Öffentlichkeitsarbeit | J31: =Öffentlichkeitsarbeit!C7 -> 0 | K31: =Öffentlichkeitsarbeit!D7 -> 0 | L31: 0 | M31: =Öffentlichkeitsarbeit!F7 -> 8750 | N31: =Öffentlichkeitsarbeit!G7 -> 0 | O31: 8750 | P31: =Öffentlichkeitsarbeit!I7 -> 3060 | Q31: =Öffentlichkeitsarbeit!J7 -> 0 | R31: =Öffentlichkeitsarbeit!K7 -> 3060 | S31: =Öffentlichkeitsarbeit!L7 -> 8500
A32: 4965 | B32: Qualitätsmanagement | J32: =Qualitätsmanagement!C6 -> 1500 | K32: =Qualitätsmanagement!D6 -> 0 | L32: -1500 | M32: =Qualitätsmanagement!F6 -> 3250 | N32: =Qualitätsmanagement!G6 -> 0 | O32: 3250 | P32: =Qualitätsmanagement!I6 -> 900 | Q32: =Qualitätsmanagement!J6 -> 0 | R32: =Qualitätsmanagement!K6 -> 900 | S32: =Qualitätsmanagement!L6 -> 3000
A33: 4966 | B33: Soziales | J33: =Soziales!C6 -> 0 | K33: =Soziales!D6 -> 0 | L33: 0 | M33: =Soziales!F6 -> 1050 | N33: =Soziales!G6 -> 0 | O33: 1050 | P33: =Soziales!I6 -> 800 | Q33: =Soziales!J6 -> 0 | R33: =Soziales!K6 -> 800 | S33: =Soziales!L6 -> 800
A34: 4967 | B34: Sport | J34: =Sport!C11 -> 3500 | K34: =Sport!D11 -> 0 | L34: -3500 | M34: =Sport!F11 -> 5450 | N34: =Sport!G11 -> 0 | O34: 5450 | P34: =Sport!I11 -> 6200 | Q34: =Sport!J11 -> 0 | R34: =Sport!K11 -> 6200 | S34: =Sport!L11 -> 5200
A35: 4968 | B35: Studium | J35: =Studium!C6 -> 0 | K35: =Studium!D6 -> 0 | L35: 0 | M35: =Studium!F6 -> 1250 | N35: =Studium!G6 -> 0 | O35: 1250 | P35: =Studium!I6 -> 1250 | Q35: =Studium!J6 -> 0 | R35: =Studium!K6 -> 1250 | S35: =Studium!L6 -> 1250
A36: 4969 | B36: Studentische Verwaltung | J36: ='Verwaltung@'!C17 -> 9700 | K36: ='Verwaltung@'!D17 -> 0 | L36: -9700 | M36: ='Verwaltung@'!F17 -> 27126 | N36: ='Verwaltung@'!G17 -> 0 | O36: 27126 | P36: ='Verwaltung@'!I17 -> 9860 | Q36: ='Verwaltung@'!J17 -> 0 | R36: ='Verwaltung@'!K17 -> 9860 | S36: ='Verwaltung@'!L17 -> 26870
A37: 4946 | B37: Personal | J37: =Personal!C21 -> 0 | K37: =Personal!D21 -> 0 | L37: 0 | M37: =Personal!F21 -> 11900 | N37: =Personal!G21 -> 0 | O37: 11900 | P37: =Personal!I21 -> 7120 | Q37: =Personal!J21 -> 0 | R37: =Personal!K21 -> 7120 | S37: =Personal!L21 -> 11650
A38: ---- | B38: Ausschüsse des Studentinnenrates | J38: 0 | K38: 0 | L38: 0 | M38: 0 | N38: 0 | O38: 0
A39: ---- | B39: weitere Vertretungen | J39: 0 | K39: 0 | L39: 0 | M39: 0 | N39: 0 | O39: 0
A40: Zwischensumme: | J40: =SUM(J27:J39) -> 42950 | K40: 0 | L40: -42950 | M40: 96076 | N40: 0 | O40: 96076 | P40: =SUM(P28:P37) -> 51310 | Q40: =SUM(Q28:Q37) -> 0 | R40: =SUM(R28:R37) -> 51310 | S40: =SUM(S28:S37) -> 90820
A41: Ausschüsse der Studentinnenschaft
A42: ---- | B42: weitere Ausschüsse der Student:innenschaft | M42: 0 | N42: 0 | O42: =M42-N42 -> 0
A43: ---- | B43: Wahlausschuss der Student:innenschaft | M43: 0 | N43: 0 | O43: =M43-N43 -> 0
A44: 4941 | B44: Härtefallausschuss der Student:innenschaft | M44: 6000 | N44: 0 | O44: =M44-N44 -> 6000
A45: Zwischensumme: | M45: =SUM(M42:M44) -> 6000 | N45: =SUM(N42:N44) -> 0 | O45: =SUM(O42:O44) -> 6000
A47: Anzahl der Studentinnen im: | F47: WiSe | G47: 26/27 | H47: SoSe | I47: 26
A48: gesamt: | F48: ='Detailblatt II'!D25 -> 4800 | H48: ='Detailblatt II'!D24 -> 4200
A49: #4942 Absicherung Teilnahme BuFaTas lt. Finanzordnung: | I49: 0.75 | M49: =ROUND(($F$48+$H$48)*$I$49,-2) -> 6800 | N49: 0 | O49: =M49-N49 -> 6800 | P49: 6030 | Q49: =IF(O49<0,IF(P49>0,IF((O49*(-1))>P49,P49,O49*(-1)),0),0) -> 0 | R49: =IF(OR(Q49>P49,O49+P49<0),MAKRO1(),ROUNDDOWN(P49-Q49,-1)) -> 6030 | S49: =IF(O49>0,ROUNDDOWN(O49,-1),0) -> 6800
A50: Zwischensumme: | M50: =SUM(M49:M49) -> 6800 | N50: 0 | O50: 6800 | P50: 6030 | Q50: 0 | R50: 6030 | S50: 6800
A51: Vertretungen der Student:innen
A52: ---- | B52: Vertretungen der Student:innen in der Hochschule | M52: 0 | N52: 0 | O52: =M52-N52 -> 0
A53: ---- | B53: Konferenz Sächsischer Studierendenschaft | M53: ='Detailblatt II'!I6 -> 3000 | N53: ='Detailblatt II'!J6 -> 0 | O53: =M53-N53 -> 3000
A54: ---- | B54: Interessenvertretungen der Student:innenschaft | M54: ='Detailblatt II'!I16 -> 2030 | N54: ='Detailblatt II'!J16 -> 0 | O54: =M54-N54 -> 2030
A55: ---- | B55: weitere Interessenvertetungen | M55: 0 | N55: 0 | O55: =M55-N55 -> 0
A56: Zwischensumme: | M56: =SUM(M52:M55) -> 5030 | N56: =SUM(N52:N55) -> 0 | O56: =SUM(O52:O55) -> 5030
A57: Gesamtsumme: | J57: =SUM(J56,J50,J45,J40,J25) -> 44450 | K57: 0 | L57: -44450 | M57: 333706 | N57: 0 | O57: 333706 | P57: =SUM(P25,P40,P50,P45,P56) -> 67210 | Q57: =SUM(Q50,Q40,Q25,Q45,Q56) -> 0 | R57: =SUM(R50,R40,R25,R45,R56) -> 67210 | S57: =SUM(S50,S40,S25,S45,S56) -> 114620

Sheet Detailblatt II
A1: Detailblatt II | B1: Jahr - | C1: =Deckblatt!B1 -> 2026 | E1: Häufigkeit | F1: Einnahmen | I1: Ausgaben | L1: nachrangig verwendbares Vj. Budget | M1: davon verwendet | N1: Zuführung "Fortgeschr. finanz. Mittel" | O1: Übertrag ins nächste HH-Jahr | P1: §5 Abs.4 S.2 FO
F2: PLAN | G2: IST | H2: SALDO | I2: PLAN | J2: IST | K2: SALDO
A3: Konferenz Sächsischer Studierendenschaften - Konto: 4981
A4: Verein zur Unterstützung der Konferenz Sächsischer Studierendenschaften e.V. | E4: 1 | F4: 0 | G4: 0 | H4: =G4-F4 -> 0 | I4: =2500 -> 2500 | J4: 0 | K4: =I4-J4 -> 2500
A5: Weitere Förderung der KSS | E5: 1 | F5: 0 | G5: 0 | H5: =G5-F5 -> 0 | I5: =500 -> 500 | J5: 0 | K5: =I5-J5 -> 500
D6: Zwischensumme: | F6: =SUM(F4:F5) -> 0 | G6: 0 | H6: 0 | I6: 3000 | J6: 0 | K6: 3000
A7: Interessenvertretungen der Studentinnenschaften - Konto: 4982
A8: faranto e.V. und Erasmus Student Network | F8: 0 | G8: 0 | H8: =G8-F8 -> 0 | I8: 1200 | J8: 0 | K8: =I8-J8 -> 1200
A9: bundesweite Interessenvertretungen (z.B. fzs etc.) | E9: 1 | F9: 0 | G9: 0 | H9: =G9-F9 -> 0 | I9: 500 | J9: 0 | K9: 500
A10: Bundesverband Ausländischer Studierender e. V. | E10: 1 | F10: 0 | G10: 0 | H10: =G10-F10 -> 0 | I10: 100 | J10: 0 | K10: 100
A11: Deutscher Akademischer Austausch Dienst e. V. | E11: 1 | F11: 0 | G11: 0 | H11: 0 | I11: 60 | J11: 0 | K11: 60
A12: Konferenz der Informatikfachschaften e. V. | E12: 1 | F12: 0 | G12: 0 | H12: 0 | I12: 60 | J12: 0 | K12: 60
A13: Konferenz der Geodäsie Studierenden e. V. | E13: 1 | F13: 0 | G13: 0 | H13: 0 | I13: 50 | J13: 0 | K13: 50
A14: Bundesfachschaft Landschaft e. V. | E14: 1 | F14: 0 | G14: 0 | H14: 0 | I14: 60 | J14: 0 | K14: 60
A15: weitere (ABS, bpm ) | F15: 0 | G15: 0 | H15: =G15-F15 -> 0 | I15: 0 | J15: 0 | K15: 0
D16: Zwischensumme: | F16: =SUM(F8:F15) -> 0 | G16: 0 | H16: 0 | I16: 2030 | J16: 0 | K16: 2030
A17: Durchführung Konferenzen - Konto: 4945
A18: O.S.T. Offenes Studierendentreffen (Bereich Bund/Land) /Hochschulpolitik | E18: 1 | F18: 0 | G18: 0 | H18: =G18-F18 -> 0 | I18: 500 | J18: 0 | K18: =I18-J18 -> 500 | L18: 500 | M18: =IF(K18<0,IF(L18>0,IF((K18*(-1))>L18,L18,K18*(-1)),0),0) -> 0 | N18: =IF(OR(M18>L18,K18+L18<0),MAKRO1(),ROUNDDOWN(L18-M18,-1)) -> 500 | O18: =IF(K18>0,ROUNDDOWN(K18,-1),0) -> 500 | P18: =(G18-J18+M18)-(F18-I18) -> 500
A19: BuFaTa | F19: 1500 | G19: 0 | H19: =G19-F19 -> -1500 | I19: 2000 | J19: 0 | K19: =I19-J19 -> 2000 | L19: 2000 | M19: =IF(K19<0,IF(L19>0,IF((K19*(-1))>L19,L19,K19*(-1)),0),0) -> 0 | N19: =IF(OR(M19>L19,K19+L19<0),MAKRO1(),ROUNDDOWN(L19-M19,-1)) -> 2000 | O19: =IF(K19>0,ROUNDDOWN(K19,-1),0) -> 2000 | P19: =(G19-J19+M19)-(F19-I19) -> 500
A20: weitere Konferenzen | F20: 0 | G20: 0 | H20: =G20-F20 -> 0 | I20: 1000 | J20: 0 | K20: =I20-J20 -> 1000 | L20: 1000 | M20: =IF(K20<0,IF(L20>0,IF((K20*(-1))>L20,L20,K20*(-1)),0),0) -> 0 | N20: =IF(OR(M20>L20,K20+L20<0),MAKRO1(),ROUNDDOWN(L20-M20,-1)) -> 1000 | O20: =IF(K20>0,ROUNDDOWN(K20,-1),0) -> 1000
D21: Zwischensumme: | F21: =SUM(F18:F20) -> 1500 | G21: 0 | H21: -1500 | I21: =SUM(I18:I20) -> 3500 | J21: 0 | K21: 3500 | L21: 3500 | M21: 0 | N21: 3500 | O21: 3500 | P21: =(G21-J21+M21)-(F21-I21) -> 2000
A22: Beitragseinnahmen
A23: Anteilig WS 25/26 | B23: 26 | C23: x Student:innen | D23: 4810 | E23: 1 | F23: =ROUND((($B$23*$D$23)/6)*2,-2) -> 41700 | G23: =123526/6*2 -> 41175.33333 | H23: =G23-F23 -> -524.6666667 | I23: 0 | J23: 0 | K23: =I23-J23 -> 0
A24: SoSe 26 | B24: 24.5 | D24: 4200 | E24: 1 | F24: =ROUND($B$24*$D$24,-2) -> 102900 | H24: =G24-F24 -> -102900 | I24: 0 | J24: 0 | K24: =I24-J24 -> 0
A25: Anteilig WS 26/27 | B25: 24.5 | D25: 4800 | E25: 1 | F25: =ROUND((($B$25*$D$25)/6)*4,-2) -> 78400 | H25: =G25-F25 -> -78400 | I25: 0 | J25: 0 | K25: =I25-J25 -> 0
D26: Zwischensumme: | F26: =SUM(F23:F25) -> 223000 | G26: 41175.33333 | H26: -181824.6667 | I26: 0 | J26: 0 | K26: 0
A27: Vermögen
A28: Verfügbare finanzielle Mittel | F28: ='fortgeschr. Mittel+Konto'!D9 -> 244627.64 | H28: =G28-F28 -> -244627.64 | I28: 0 | J28: 0 | K28: =I28-J28 -> 0
A29: angeordnete Vermögensänderung lt. FO | F29: =Deckblatt!C7 -> 0 | H29: =G29-F29 -> 0 | I29: =IF(F28<Mindestreserve!D18,Mindestreserve!D18-F28,0) -> 0 | K29: =I29-J29 -> 0
A30: Zinsen auf Vermögen | F30: 3000 | G30: 0 | H30: =G30-F30 -> -3000 | I30: 800 | J30: 0 | K30: =I30-J30 -> 800
A31: geplante Veränderung des Vermögens Ansparen/Entnahme | F31: =Deckblatt!C6*(-1) -> -586 | G31: 0 | H31: =G31-F31 -> 586 | I31: =Deckblatt!F6 -> 0 | J31: 0 | K31: =I31-J31 -> 0
D32: Zwischensumme: | F32: =SUM(F28:F31) -> 247041.64 | G32: 0 | H32: -247041.64 | I32: 800 | J32: 0 | K32: 800
A33: Gesamtsumme: | F33: =SUM(F26,F21,F16,F6) -> 224500 | G33: 41175.33333 | H33: -183324.6667 | I33: 8530 | J33: 0 | K33: 8530 | L33: 3500 | M33: 0 | N33: 3500 | O33: 3500 | P33: =(G33-J33+M33)-(F33-I33) -> -174794.6667

Sheet Finanzen
A1: Referat Finanzen | C1: Häufigkeit | D1: Einnahmen | G1: Ausgaben
D2: PLAN | E2: IST | F2: SALDO | G2: PLAN | H2: IST | I2: SALDO
A3: Kontoführung mit Onlinebanking | B3: Sachkonto: 4970 | C3: 12 | D3: 0 | E3: 0 | F3: =E3-D3 -> 0 | G3: 600 | H3: 0 | I3: =G3-H3 -> 600
A4: Buchhaltungssoftware AGENDA | B4: Sachkonto: 4955 | C4: 12 | D4: 0 | E4: 0 | F4: =E4-D4 -> 0 | G4: 1100 | H4: 0 | I4: =G4-H4 -> 1100
A5: Nebenkosten Zahlungsverkehr | B5: Sachkonto: 4972 | D5: 0 | E5: 0 | F5: 0 | G5: 1100 | H5: 0 | I5: =G5-H5 -> 1100
A6: Förderverein Student:innenschaft HTWD | C6: 1 | D6: 0 | E6: 0 | F6: 0 | G6: 200 | H6: 0 | I6: =G6-H6 -> 200
A7: CoCo-Pauschale | D7: 0 | E7: 0 | F7: =E7-D7 -> 0 | G7: 250 | H7: 0 | I7: =G7-H7 -> 250
A8: Gesamtsumme: | D8: =SUM(D3:D7) -> 0 | E8: 0 | F8: 0 | G8: 3250 | H8: 0 | I8: 3250

Sheet Hochschulpolitik
A1: Referat Hochschulpolitik | B1: Häufigkeit | C1: Einnahmen | F1: Ausgaben | I1: nachrangig verwendbares Vj. Budget | J1: davon verwendet | K1: Zuführung "Fortgeschr. finanz. Mittel" | L1: Übertrag ins nächste HH-Jahr | M1: §5 Abs.4 S.2 FO
C2: PLAN | D2: IST | E2: SALDO | F2: PLAN | G2: IST | H2: SALDO
A3: Aktionstage gegen Sexismus und Homophobie | B3: 1 | C3: 0 | D3: 0 | E3: =D3-C3 -> 0 | F3: 100 | G3: 0 | H3: =F3-G3 -> 100 | I3: 100 | J3: =IF(H3<0,IF(I3>0,IF((H3*(-1))>I3,I3,H3*(-1)),0),0) -> 0 | K3: =IF(OR(J3>I3,H3+I3<0),MAKRO1(),ROUNDDOWN(I3-J3,-1)) -> 100 | L3: =IF(H3>0,ROUNDDOWN(H3,-1),0) -> 100 | M3: =(D3-G3+J3)-(C3-F3) -> 100
A4: Aktionen, Festivals und Demonstrationen | C4: 0 | D4: 0 | E4: 0 | F4: 1000 | G4: 0 | H4: 1000 | I4: 1000 | J4: 0 | K4: =IF(OR(J4>I4,H4+I4<0),MAKRO1(),ROUNDDOWN(I4-J4,-1)) -> 1000 | L4: 1000 | M4: =(D4-G4+J4)-(C4-F4) -> 1000
A5: studentischer Hochschulrat/Hochschulversammlung | B5: 1 | C5: 1400 | D5: 0 | E5: -1400 | F5: 1500 | G5: 0 | H5: 1500 | I5: 990 | J5: 0 | K5: =IF(OR(J5>I5,H5+I5<0),MAKRO1(),ROUNDDOWN(I5-J5,-1)) -> 990 | L5: 1500 | M5: =(D5-G5+J5)-(C5-F5) -> 100
A6: Förderverein HTW Dresden - Mitgliedsbeitrag | B6: 1 | C6: 0 | D6: 0 | E6: 0 | F6: 150 | G6: 0 | H6: 150 | I6: 0 | J6: 0 | K6: =IF(OR(J6>I6,H6+I6<0),MAKRO1(),ROUNDDOWN(I6-J6,-1)) -> 0 | L6: 150 | M6: =(D6-G6+J6)-(C6-F6) -> 150
A7: politische Bildung / Umweltbildung | C7: 0 | D7: 0 | E7: 0 | F7: 1300 | G7: 0 | H7: 1300 | I7: 1000 | J7: 0 | K7: =IF(OR(J7>I7,H7+I7<0),MAKRO1(),ROUNDDOWN(I7-J7,-1)) -> 1000 | L7: 1300 | M7: =(D7-G7+J7)-(C7-F7) -> 1300
A8: CoCo-Pauschale | C8: 0 | D8: 0 | E8: 0 | F8: 250 | G8: 0 | H8: 250 | J8: 0 | K8: =IF(OR(J8>I8,H8+I8<0),MAKRO1(),ROUNDDOWN(I8-J8,-1)) -> 0 | L8: 250
A9: Gesamtsumme: | C9: =SUM(C3:C8) -> 1400 | D9: 0 | E9: -1400 | F9: 4300 | G9: 0 | H9: 4300 | I9: 3090 | J9: 0 | K9: 3090 | L9: 4300 | M9: =(D9-G9+J9)-(C9-F9) -> 2900

Sheet Internationales
A1: Referat Internationales | B1: Häufigkeit | C1: Einnahmen | F1: Ausgaben | I1: nachrangig verwendbares Vj. Budget | J1: davon verwendet | K1: Zuführung "Fortgeschr. finanz. Mittel" | L1: Übertrag ins nächste HH-Jahr | M1: §5 Abs.4 S.2 FO
C2: PLAN | D2: IST | E2: SALDO | F2: PLAN | G2: IST | H2: SALDO
A3: Internationaler Tag | B3: 1 | C3: 0 | D3: 0 | E3: =D3-C3 -> 0 | F3: 100 | G3: 0 | H3: =F3-G3 -> 100 | I3: 100 | J3: =IF(H3<0,IF(I3>0,IF((H3*(-1))>I3,I3,H3*(-1)),0),0) -> 0 | K3: =IF(OR(J3>I3,H3+I3<0),MAKRO1(),ROUNDDOWN(I3-J3,-1)) -> 100 | L3: =IF(H3>0,ROUNDDOWN(H3,-1),0) -> 100 | M3: =(D3-G3+J3)-(C3-F3) -> 100
A4: Informations- und und Unterstützungsveranstaltungen zu Auslandsstudien | B4: 2 | C4: 0 | D4: 0 | E4: =D4-C4 -> 0 | F4: 1000 | G4: 0 | H4: =F4-G4 -> 1000 | I4: 0 | J4: =IF(H4<0,IF(I4>0,IF((H4*(-1))>I4,I4,H4*(-1)),0),0) -> 0 | K4: =IF(OR(J4>I4,H4+I4<0),MAKRO1(),ROUNDDOWN(I4-J4,-1)) -> 0 | L4: =IF(H4>0,ROUNDDOWN(H4,-1),0) -> 1000 | M4: =(D4-G4+J4)-(C4-F4) -> 1000
A5: CoCo-Pauschale | C5: 0 | D5: 0 | E5: =D5-C5 -> 0 | F5: 250 | G5: 0 | H5: =F5-G5 -> 250
A6: Gesamtsumme: | C6: =SUM(C3:C5) -> 0 | D6: 0 | E6: 0 | F6: 1350 | G6: 0 | H6: 1350 | I6: 100 | J6: 0 | K6: 100 | L6: 1100 | M6: =(D6-G6+J6)-(C6-F6) -> 1350

Sheet Kultur
A1: Referat Kultur | B1: Häufigkeit | C1: Einnahmen | F1: Ausgaben | I1: nachrangig verwendbares Vj. Budget | J1: davon verwendet | K1: Zuführung "Fortgeschr. finanz. Mittel" | L1: Übertrag ins nächste HH-Jahr | M1: §5 Abs.4 S.2 FO
C2: PLAN | D2: IST | E2: SALDO | F2: PLAN | G2: IST | H2: SALDO
A3: Kino in der Hochschule | C3: 800 | D3: 0 | E3: =D3-C3 -> -800 | F3: 800 | G3: 0 | H3: =F3-G3 -> 800 | I3: 540 | J3: =IF(H3<0,IF(I3>0,IF((H3*(-1))>I3,I3,H3*(-1)),0),0) -> 0 | K3: =IF(OR(J3>I3,H3+I3<0),MAKRO1(),ROUNDDOWN(I3-J3,-1)) -> 540 | L3: =IF(H3>0,ROUNDDOWN(H3,-1),0) -> 800 | M3: =(D3-G3+J3)-(C3-F3) -> 0
A4: Erstifahrten | C4: 4000 | D4: 0 | E4: -4000 | F4: 4000 | G4: 0 | H4: 4000 | I4: 4000 | J4: 0 | K4: =IF(OR(J4>I4,H4+I4<0),MAKRO1(),ROUNDDOWN(I4-J4,-1)) -> 4000 | L4: 4000 | M4: 0
A5: Semestereröffnungspartys (SEP) | B5: 2 | C5: 5000 | D5: 0 | E5: -5000 | F5: 5000 | G5: 0 | H5: 5000 | I5: 2630 | J5: 0 | K5: =IF(OR(J5>I5,H5+I5<0),MAKRO1(),ROUNDDOWN(I5-J5,-1)) -> 2630 | L5: 5000 | M5: 0
A6: Semesterabschlussfeier (SAF) | B6: 2 | C6: 4500 | D6: 0 | E6: -4500 | F6: 4500 | G6: 0 | H6: 4500 | I6: 2270 | J6: 0 | K6: =IF(OR(J6>I6,H6+I6<0),MAKRO1(),ROUNDDOWN(I6-J6,-1)) -> 2270 | L6: 4500 | M6: 0
A7: Weihnachtsfeiern | C7: 3000 | D7: 0 | E7: -3000 | F7: 3500 | G7: 0 | H7: 3500 | I7: 3460 | J7: 0 | K7: =IF(OR(J7>I7,H7+I7<0),MAKRO1(),ROUNDDOWN(I7-J7,-1)) -> 3460 | L7: 3500 | M7: 500
A8: Fakultätsfeste & Sommerfeste | C8: 7100 | D8: 0 | E8: -7100 | F8: 7600 | G8: 0 | H8: 7600 | I8: 3780 | J8: 0 | K8: =IF(OR(J8>I8,H8+I8<0),MAKRO1(),ROUNDDOWN(I8-J8,-1)) -> 3780 | L8: 7600 | M8: 500
A9: LAN-Partys | C9: 250 | D9: 0 | E9: -250 | F9: 250 | G9: 0 | H9: 250 | I9: 250 | J9: 0 | K9: =IF(OR(J9>I9,H9+I9<0),MAKRO1(),ROUNDDOWN(I9-J9,-1)) -> 250 | L9: 250 | M9: 0
A10: Musikveranstaltung | B10: 1 | C10: 250 | D10: 0 | E10: -250 | F10: 250 | G10: 0 | H10: 250 | I10: 250 | J10: 0 | K10: =IF(OR(J10>I10,H10+I10<0),MAKRO1(),ROUNDDOWN(I10-J10,-1)) -> 250 | L10: 250 | M10: 0
A11: Literatur | C11: 150 | D11: 0 | E11: -150 | F11: 250 | G11: 0 | H11: 250 | I11: 250 | J11: 0 | K11: =IF(OR(J11>I11,H11+I11<0),MAKRO1(),ROUNDDOWN(I11-J11,-1)) -> 250 | L11: 250 | M11: 100
A12: Spieleabende | B12: 2 | C12: 300 | D12: 0 | E12: -300 | F12: 500 | G12: 0 | H12: 500 | I12: 500 | J12: 0 | K12: =IF(OR(J12>I12,H12+I12<0),MAKRO1(),ROUNDDOWN(I12-J12,-1)) -> 500 | L12: 500 | M12: 200
A13: Vernetzung von Student:innen der Hochschule | C13: 1500 | D13: 0 | E13: -1500 | F13: 1500 | G13: 0 | H13: 1500 | I13: 1000 | J13: 0 | K13: =IF(OR(J13>I13,H13+I13<0),MAKRO1(),ROUNDDOWN(I13-J13,-1)) -> 1000 | L13: 1500 | M13: 0
A14: CoCo-Pauschale | C14: 0 | D14: 0 | E14: 0 | F14: 250 | G14: 0 | H14: 250
A15: Gesamtsumme: | C15: =SUM(C3:C14) -> 26850 | D15: 0 | E15: -26850 | F15: 28400 | G15: 0 | H15: 28400 | I15: 18930 | J15: 0 | K15: 18930 | L15: 28150 | M15: =(D15-G15+J15)-(C15-F15) -> 1550

Sheet Öffentlichkeitsarbeit
A1: Referat Öffentlichkeitsarbeit | B1: Häufigkeit | C1: Einnahmen | F1: Ausgaben | I1: nachrangig verwendbares Vj. Budget | J1: davon verwendet | K1: Zuführung "Fortgeschr. finanz. Mittel" | L1: Übertrag ins nächste HH-Jahr | M1: §5 Abs.4 S.2 FO
C2: PLAN | D2: IST | E2: SALDO | F2: PLAN | G2: IST | H2: SALDO
A3: Hochschul- und Vorstellungsveranstaltungen | C3: 0 | D3: 0 | E3: =D3-C3 -> 0 | F3: 500 | G3: 0 | H3: =F3-G3 -> 500 | I3: 500 | J3: =IF(H3<0,IF(I3>0,IF((H3*(-1))>I3,I3,H3*(-1)),0),0) -> 0 | K3: =IF(OR(J3>I3,H3+I3<0),MAKRO1(),ROUNDDOWN(I3-J3,-1)) -> 500 | L3: =IF(H3>0,ROUNDDOWN(H3,-1),0) -> 500 | M3: =(D3-G3+J3)-(C3-F3) -> 500
A4: Werbemittel (Kulis, Plakate etc.) | C4: 0 | D4: 0 | E4: =D4-C4 -> 0 | F4: 3000 | G4: 0 | H4: =F4-G4 -> 3000 | I4: 2560 | J4: =IF(H4<0,IF(I4>0,IF((H4*(-1))>I4,I4,H4*(-1)),0),0) -> 0 | K4: =IF(OR(J4>I4,H4+I4<0),MAKRO1(),ROUNDDOWN(I4-J4,-1)) -> 2560 | L4: =IF(H4>0,ROUNDDOWN(H4,-1),0) -> 3000 | M4: =(D4-G4+J4)-(C4-F4) -> 3000
A5: Beutel Erstsemestereinführung (ESE Beutel) | C5: 0 | D5: 0 | E5: =D5-C5 -> 0 | F5: 5000 | G5: 0 | H5: =F5-G5 -> 5000 | I5: 0 | J5: =IF(H5<0,IF(I5>0,IF((H5*(-1))>I5,I5,H5*(-1)),0),0) -> 0 | K5: =IF(OR(J5>I5,H5+I5<0),MAKRO1(),ROUNDDOWN(I5-J5,-1)) -> 0 | L5: =IF(H5>0,ROUNDDOWN(H5,-1),0) -> 5000 | M5: =(D5-G5+J5)-(C5-F5) -> 5000
A6: CoCo-Pauschale | C6: 0 | D6: 0 | E6: =D6-C6 -> 0 | F6: 250 | G6: 0 | H6: =F6-G6 -> 250
A7: Gesamtsumme: | C7: =SUM(C3:C6) -> 0 | D7: 0 | E7: 0 | F7: 8750 | G7: 0 | H7: 8750 | I7: 3060 | J7: 0 | K7: 3060 | L7: 8500 | M7: =(D7-G7+J7)-(C7-F7) -> 8750

Sheet Qualitätsmanagement
A1: Referat Qualitätsmanagement | B1: Häufigkeit | C1: Einnahmen | F1: Ausgaben | I1: nachrangig verwendbares Vj. Budget | J1: davon verwendet | K1: Zuführung "Fortgeschr. finanz. Mittel" | L1: Übertrag ins nächste HH-Jahr | M1: §5 Abs.4 S.2 FO
C2: PLAN | D2: IST | E2: SALDO | F2: PLAN | G2: IST | H2: SALDO
A3: Veranstaltung Erstsemestereinführung (ESE) | B3: 1 | C3: 1500 | D3: 0 | E3: =D3-C3 -> -1500 | F3: 3000 | G3: 0 | H3: =F3-G3 -> 3000 | I3: 900 | J3: =IF(H3<0,IF(I3>0,IF((H3*(-1))>I3,I3,H3*(-1)),0),0) -> 0 | K3: =IF(OR(J3>I3,H3+I3<0),MAKRO1(),ROUNDDOWN(I3-J3,-1)) -> 900 | L3: =IF(H3>0,ROUNDDOWN(H3,-1),0) -> 3000 | M3: =(D3-G3+J3)-(C3-F3) -> 1500
A4: Systemakkreditierung | C4: 0 | D4: 0 | E4: =D4-C4 -> 0 | F4: 0 | G4: 0 | H4: =F4-G4 -> 0 | I4: 0 | J4: =IF(H4<0,IF(I4>0,IF((H4*(-1))>I4,I4,H4*(-1)),0),0) -> 0 | K4: =IF(OR(J4>I4,H4+I4<0),MAKRO1(),ROUNDDOWN(I4-J4,-1)) -> 0 | L4: =IF(H4>0,ROUNDDOWN(H4,-1),0) -> 0 | M4: =(D4-G4+J4)-(C4-F4) -> 0
A5: CoCo-Pauschale | C5: 0 | D5: 0 | E5: =D5-C5 -> 0 | F5: 250 | G5: 0 | H5: =F5-G5 -> 250
A6: Gesamtsumme: | C6: =SUM(C3:C5) -> 1500 | D6: 0 | E6: -1500 | F6: 3250 | G6: 0 | H6: 3250 | I6: 900 | J6: 0 | K6: 900 | L6: 3000 | M6: =(D6-G6+J6)-(C6-F6) -> 1750

Sheet Soziales
A1: Referat Soziales | B1: Häufigkeit | C1: Einnahmen | F1: Ausgaben | I1: nachrangig verwendbares Vj. Budget | J1: davon verwendet | K1: Zuführung "Fortgeschr. finanz. Mittel" | L1: Übertrag ins nächste HH-Jahr | M1: §5 Abs.4 S.2 FO
C2: PLAN | D2: IST | E2: SALDO | F2: PLAN | G2: IST | H2: SALDO
A3: Informationsveranstaltungen und Beratungen zu sozialen Belangen | C3: 0 | D3: 0 | E3: =D3-C3 -> 0 | F3: 300 | G3: 0 | H3: =F3-G3 -> 300 | I3: 300 | J3: =IF(H3<0,IF(I3>0,IF((H3*(-1))>I3,I3,H3*(-1)),0),0) -> 0 | K3: =IF(OR(J3>I3,H3+I3<0),MAKRO1(),ROUNDDOWN(I3-J3,-1)) -> 300 | L3: =IF(H3>0,ROUNDDOWN(H3,-1),0) -> 300 | M3: =(D3-G3+J3)-(C3-F3) -> 300
A4: Vortrag Mietrecht | B4: 2 | C4: 0 | D4: 0 | E4: =D4-C4 -> 0 | F4: 500 | G4: 0 | H4: =F4-G4 -> 500 | I4: 500 | J4: =IF(H4<0,IF(I4>0,IF((H4*(-1))>I4,I4,H4*(-1)),0),0) -> 0 | K4: =IF(OR(J4>I4,H4+I4<0),MAKRO1(),ROUNDDOWN(I4-J4,-1)) -> 500 | L4: =IF(H4>0,ROUNDDOWN(H4,-1),0) -> 500 | M4: =(D4-G4+J4)-(C4-F4) -> 500
A5: CoCo-Pauschale | C5: 0 | D5: 0 | E5: =D5-C5 -> 0 | F5: 250 | G5: 0 | H5: =F5-G5 -> 250
A6: Gesamtsumme: | C6: =SUM(C3:C5) -> 0 | D6: 0 | E6: 0 | F6: 1050 | G6: 0 | H6: 1050 | I6: 800 | J6: 0 | K6: 800 | L6: 800 | M6: =(D6-G6+J6)-(C6-F6) -> 1050

Sheet Sport
A1: Referat Sport | B1: Häufigkeit | C1: Einnahmen | F1: Ausgaben | I1: nachrangig verwendbares Vj. Budget | J1: davon verwendet | K1: Zuführung "Fortgeschr. finanz. Mittel" | L1: Übertrag ins nächste HH-Jahr | M1: §5 Abs.4 S.2 FO
C2: PLAN | D2: IST | E2: SALDO | F2: PLAN | G2: IST | H2: SALDO
A3: Turniere, Preise, Beiträge | C3: 300 | D3: 0 | E3: =D3-C3 -> -300 | F3: 800 | G3: 0 | H3: =F3-G3 -> 800 | I3: 500 | J3: =IF(H3<0,IF(I3>0,IF((H3*(-1))>I3,I3,H3*(-1)),0),0) -> 0 | K3: =IF(OR(J3>I3,H3+I3<0),MAKRO1(),ROUNDDOWN(I3-J3,-1)) -> 500 | L3: =IF(H3>0,ROUNDDOWN(H3,-1),0) -> 800 | M3: =(D3-G3+J3)-(C3-F3) -> 500
A4: Nikolausvolleyballturnier | B4: 1 | C4: 200 | D4: 0 | E4: -200 | F4: 300 | G4: 0 | H4: 300 | I4: 1000 | J4: 0 | K4: =IF(OR(J4>I4,H4+I4<0),MAKRO1(),ROUNDDOWN(I4-J4,-1)) -> 1000 | L4: 300 | M4: 100
A5: Startgebühren | C5: 0 | D5: 0 | E5: 0 | F5: 600 | G5: 0 | H5: 600 | I5: 200 | J5: 0 | K5: =IF(OR(J5>I5,H5+I5<0),MAKRO1(),ROUNDDOWN(I5-J5,-1)) -> 200 | L5: 600 | M5: 600
A6: Beachfeier | C6: 1000 | D6: 0 | E6: -1000 | F6: 1000 | G6: 0 | H6: 1000 | I6: 1000 | J6: 0 | K6: =IF(OR(J6>I6,H6+I6<0),MAKRO1(),ROUNDDOWN(I6-J6,-1)) -> 1000 | L6: 1000 | M6: 0
A7: Gesundheitsmanagement | B7: 1 | C7: 0 | D7: 0 | E7: 0 | F7: 0 | G7: 0 | H7: 0 | I7: 500 | J7: 0 | K7: =IF(OR(J7>I7,H7+I7<0),MAKRO1(),ROUNDDOWN(I7-J7,-1)) -> 500 | L7: 0 | M7: 0
A8: Ausflüge | B8: 1 | C8: 0 | D8: 0 | E8: 0 | F8: 0 | G8: 0 | H8: 0 | I8: 500 | J8: 0 | K8: =IF(OR(J8>I8,H8+I8<0),MAKRO1(),ROUNDDOWN(I8-J8,-1)) -> 500 | L8: 0 | M8: 0
A9: Sportevents (Eislaufen, Lasertag, Trampolinpark) | C9: 2000 | D9: 0 | E9: -2000 | F9: 2500 | G9: 0 | H9: 2500 | I9: 2500 | J9: 0 | K9: =IF(OR(J9>I9,H9+I9<0),MAKRO1(),ROUNDDOWN(I9-J9,-1)) -> 2500 | L9: 2500 | M9: 500
A10: CoCo-Pauschale | C10: 0 | D10: 0 | E10: 0 | F10: 250 | G10: 0 | H10: 250
A11: Gesamtsumme: | C11: =SUM(C3:C10) -> 3500 | D11: 0 | E11: -3500 | F11: 5450 | G11: 0 | H11: 5450 | I11: 6200 | J11: 0 | K11: 6200 | L11: 5200 | M11: =(D11-G11+J11)-(C11-F11) -> 1950

Sheet Studium
A1: Referat Studium | B1: Häufigkeit | C1: Einnahmen | F1: Ausgaben | I1: nachrangig verwendbares Vj. Budget | J1: davon verwendet | K1: Zuführung "Fortgeschr. finanz. Mittel" | L1: Übertrag ins nächste HH-Jahr | M1: §5 Abs.4 S.2 FO
C2: PLAN | D2: IST | E2: SALDO | F2: PLAN | G2: IST | H2: SALDO
A3: Veranstaltung lange Nacht des Studierens | B3: 1 | C3: 0 | D3: 0 | E3: =D3-C3 -> 0 | F3: 500 | G3: 0 | H3: =F3-G3 -> 500 | I3: 500 | J3: =IF(H3<0,IF(I3>0,IF((H3*(-1))>I3,I3,H3*(-1)),0),0) -> 0 | K3: =IF(OR(J3>I3,H3+I3<0),MAKRO1(),ROUNDDOWN(I3-J3,-1)) -> 500 | L3: =IF(H3>0,ROUNDDOWN(H3,-1),0) -> 500 | M3: =(D3-G3+J3)-(C3-F3) -> 500
A4: Rechtskosten Prüfungsangelegenheiten | C4: 0 | D4: 0 | E4: =D4-C4 -> 0 | F4: 750 | G4: 0 | H4: =F4-G4 -> 750 | I4: 750 | J4: =IF(H4<0,IF(I4>0,IF((H4*(-1))>I4,I4,H4*(-1)),0),0) -> 0 | K4: =IF(OR(J4>I4,H4+I4<0),MAKRO1(),ROUNDDOWN(I4-J4,-1)) -> 750 | L4: =IF(H4>0,ROUNDDOWN(H4,-1),0) -> 750 | M4: =(D4-G4+J4)-(C4-F4) -> 750
A5: CoCo-Pauschale | C5: 0 | D5: 0 | E5: =D5-C5 -> 0 | F5: =250-250 -> 0 | G5: 0 | H5: =F5-G5 -> 0
A6: Gesamtsumme: | C6: =SUM(C3:C5) -> 0 | D6: 0 | E6: 0 | F6: 1250 | G6: 0 | H6: 1250 | I6: 1250 | J6: 0 | K6: 1250 | L6: 1250 | M6: =(D6-G6+J6)-(C6-F6) -> 1250

Sheet Verwaltung@
A1: Referat Verwaltung | B1: Häufigkeit | C1: Einnahmen | F1: Ausgaben | I1: nachrangig verwendbares Vj. Budget | J1: davon verwendet | K1: Zuführung "Fortgeschr. finanz. Mittel" | L1: Übertrag ins nächste HH- Jahr | M1: §5 Abs.4 S.2 FO
C2: PLAN | D2: IST | E2: SALDO | F2: PLAN | G2: IST | H2: SALDO
A3: Simkarten | C3: 0 | D3: 0 | E3: =D3-C3 -> 0 | F3: 180 | G3: 0 | H3: =F3-G3 -> 180 | I3: 80 | J3: =IF(H3<0,IF(I3>0,IF((H3*(-1))>I3,I3,H3*(-1)),0),0) -> 0 | K3: =IF(OR(J3>I3,H3+I3<0),MAKRO1(),ROUNDDOWN(I3-J3,-1)) -> 80 | L3: =IF(H3>0,ROUNDDOWN(H3,-1),0) -> 180 | M3: =(D3-G3+J3)-(C3-F3) -> 180
A4: Domains | C4: 0 | D4: 0 | E4: =D4-C4 -> 0 | F4: 80 | G4: 0 | H4: =F4-G4 -> 80 | I4: 60 | J4: 0 | K4: =IF(OR(J4>I4,H4+I4<0),MAKRO1(),ROUNDDOWN(I4-J4,-1)) -> 60 | L4: 80 | M4: 80
A5: Beitrag Gruppenausweis für Jugendherbergen | B5: 1 | C5: 0 | D5: 0 | E5: =D5-C5 -> 0 | F5: 26 | G5: 0 | H5: =F5-G5 -> 26 | I5: 20 | J5: 0 | K5: =IF(OR(J5>I5,H5+I5<0),MAKRO1(),ROUNDDOWN(I5-J5,-1)) -> 20 | L5: 20 | M5: 26
A6: Versicherung Beachvolleyballplätze | C6: 0 | D6: 0 | E6: =D6-C6 -> 0 | F6: 400 | G6: 0 | H6: =F6-G6 -> 400 | I6: 140 | J6: 0 | K6: =IF(OR(J6>I6,H6+I6<0),MAKRO1(),ROUNDDOWN(I6-J6,-1)) -> 140 | L6: 400 | M6: 400
A7: Aufbau drittes Feld Beachvolleyballplätze | C7: 6000 | D7: 0 | E7: -6000 | F7: 6000 | G7: 0 | H7: 6000 | I7: 6000 | J7: 0 | K7: =IF(OR(J7>I7,H7+I7<0),MAKRO1(),ROUNDDOWN(I7-J7,-1)) -> 6000 | L7: 6000 | M7: 0
A8: Dienste für elektronische Datenverarbeitung | C8: 0 | D8: 0 | E8: 0 | F8: 15000 | G8: 0 | H8: =F8-G8 -> 15000 | I8: 0 | J8: 0 | K8: =IF(OR(J8>I8,H8+I8<0),MAKRO1(),ROUNDDOWN(I8-J8,-1)) -> 0 | L8: 15000 | M8: 15000
A9: andauernde Betreuung Server durch Externe | C9: 0 | D9: 0 | E9: 0 | F9: 0 | G9: 0 | H9: 0 | I9: 0 | J9: 0 | K9: =IF(OR(J9>I9,H9+I9<0),MAKRO1(),ROUNDDOWN(I9-J9,-1)) -> 0 | L9: 0 | M9: 0
A10: Zugangskarten Verwaltungsräume | C10: 0 | D10: 0 | E10: 0 | F10: 330 | G10: 0 | H10: 330 | I10: 0 | J10: 0 | K10: =IF(OR(J10>I10,H10+I10<0),MAKRO1(),ROUNDDOWN(I10-J10,-1)) -> 0 | L10: 330 | M10: 330
A11: Büromaterial und -ausstattung | C11: 0 | D11: 0 | E11: =D11-C11 -> 0 | F11: 600 | G11: 0 | H11: 600 | I11: 390 | J11: 0 | K11: =IF(OR(J11>I11,H11+I11<0),MAKRO1(),ROUNDDOWN(I11-J11,-1)) -> 390 | L11: 600 | M11: 600
A12: Getränkeautomat | C12: 1000 | D12: 0 | E12: -1000 | F12: 900 | G12: 0 | H12: 900 | I12: 320 | J12: 0 | K12: =IF(OR(J12>I12,H12+I12<0),MAKRO1(),ROUNDDOWN(I12-J12,-1)) -> 320 | L12: 900 | M12: -100
A13: laufende Kosten für Druck, samt Nebenkosten | C13: 0 | D13: 0 | E13: 0 | F13: 550 | G13: 0 | H13: 550 | I13: 150 | J13: 0 | K13: =IF(OR(J13>I13,H13+I13<0),MAKRO1(),ROUNDDOWN(I13-J13,-1)) -> 150 | L13: 550 | M13: 550
A14: Studienmaterial (z. B. Laborkittel) | C14: 2700 | D14: 0 | E14: -2700 | F14: 2700 | G14: 0 | H14: 2700 | I14: 2700 | J14: 0 | K14: =IF(OR(J14>I14,H14+I14<0),MAKRO1(),ROUNDDOWN(I14-J14,-1)) -> 2700 | L14: 2700 | M14: 0
A15: Canva Pro | C15: 0 | D15: 0 | E15: =D15-C15 -> 0 | F15: 110 | G15: 0 | H15: =F15-G15 -> 110 | I15: 0 | J15: =IF(H15<0,IF(I15>0,IF((H15*(-1))>I15,I15,H15*(-1)),0),0) -> 0 | K15: =IF(OR(J15>I15,H15+I15<0),MAKRO1(),ROUNDDOWN(I15-J15,-1)) -> 0 | L15: =IF(H15>0,ROUNDDOWN(H15,-1),0) -> 110 | M15: =(D15-G15+J15)-(C15-F15) -> 110
A16: CoCo-Pauschale | C16: 0 | D16: 0 | E16: 0 | F16: 250 | G16: 0 | H16: 250
A17: Gesamtsumme: | C17: =SUM(C3:C16) -> 9700 | D17: 0 | E17: -9700 | F17: 27126 | G17: 0 | H17: 27126 | I17: 9860 | J17: 0 | K17: 9860 | L17: 26870 | M17: =(D17-G17+J17)-(C17-F17) -> 17426

Sheet Personal
A1: Referat Personal | B1: Häufigkeit | C1: Einnahmen | F1: Ausgaben | I1: nachrangig verwendbares Vj. Budget | J1: davon verwendet | K1: Zuführung "Fortgeschr. finanz. Mittel" | L1: Übertrag ins nächste HH-Jahr | M1: §5 Abs.4 S.2 FO
C2: PLAN | D2: IST | E2: SALDO | F2: PLAN | G2: IST | H2: SALDO
A3: Schulungen
A4: Akkreditierung / Qualitätsmanagement | C4: 0 | D4: 0 | E4: =D4-C4 -> 0 | F4: 1800 | G4: 0 | H4: =F4-G4 -> 1800 | I4: 1800 | J4: =IF(H4<0,IF(I4>0,IF((H4*(-1))>I4,I4,H4*(-1)),0),0) -> 0 | K4: =IF(OR(J4>I4,H4+I4<0),MAKRO1(),ROUNDDOWN(I4-J4,-1)) -> 1800 | L4: =IF(H4>0,ROUNDDOWN(H4,-1),0) -> 1800 | M4: =(D4-G4+J4)-(C4-F4) -> 1800
A5: Veranstaltung zu Erste Hilfe / Qualitästmanagement | C5: 0 | D5: 0 | E5: =D5-C5 -> 0 | F5: 500 | G5: 0 | H5: =F5-G5 -> 500 | I5: 500 | J5: =IF(H5<0,IF(I5>0,IF((H5*(-1))>I5,I5,H5*(-1)),0),0) -> 0 | K5: =IF(OR(J5>I5,H5+I5<0),MAKRO1(),ROUNDDOWN(I5-J5,-1)) -> 500 | L5: =IF(H5>0,ROUNDDOWN(H5,-1),0) -> 500 | M5: =(D5-G5+J5)-(C5-F5) -> 500
A6: Sozialberatung (BAföG, Jobberatung) / Soziales | C6: 0 | D6: 0 | E6: 0 | F6: 250 | G6: 0 | H6: 250 | I6: 250 | J6: 0 | K6: =IF(OR(J6>I6,H6+I6<0),MAKRO1(),ROUNDDOWN(I6-J6,-1)) -> 250 | L6: 250 | M6: 250
A7: studentische und akademische Selbstverwaltung (Studienprüfungsordnung) / Studium | C7: 0 | D7: 0 | E7: 0 | F7: 100 | G7: 0 | H7: 100 | I7: 100 | J7: 0 | K7: =IF(OR(J7>I7,H7+I7<0),MAKRO1(),ROUNDDOWN(I7-J7,-1)) -> 100 | L7: 100 | M7: 100
A8: Prüfungsangelegenheiten / Studium | C8: 0 | D8: 0 | E8: 0 | F8: 250 | G8: 0 | H8: 250 | I8: 250 | J8: 0 | K8: =IF(OR(J8>I8,H8+I8<0),MAKRO1(),ROUNDDOWN(I8-J8,-1)) -> 250 | L8: 250 | M8: 250
A9: pol. Bildung, Antidiskriminierung, Gleichstellung / Hochschulpolitik | C9: 0 | D9: 0 | E9: 0 | F9: 100 | G9: 0 | H9: 100 | I9: 100 | J9: 0 | K9: =IF(OR(J9>I9,H9+I9<0),MAKRO1(),ROUNDDOWN(I9-J9,-1)) -> 100 | L9: 100 | M9: 100
A10: Serverbetreuung / Administration und Rechentechnik | C10: 0 | D10: 0 | E10: =D10-C10 -> 0 | F10: 1000 | G10: 0 | H10: =F10-G10 -> 1000 | I10: 0 | J10: =IF(H10<0,IF(I10>0,IF((H10*(-1))>I10,I10,H10*(-1)),0),0) -> 0 | K10: =IF(OR(J10>I10,H10+I10<0),MAKRO1(),ROUNDDOWN(I10-J10,-1)) -> 0 | L10: =IF(H10>0,ROUNDDOWN(H10,-1),0) -> 1000 | M10: =(D10-G10+J10)-(C10-F10) -> 1000
A11: interne Seminare (KoSe, LuISe, ClaRa) | B11: 3 | C11: 0 | D11: 0 | E11: 0 | F11: 1150 | G11: 0 | H11: 1150 | I11: 820 | J11: 0 | K11: =IF(OR(J11>I11,H11+I11<0),MAKRO1(),ROUNDDOWN(I11-J11,-1)) -> 820 | L11: 1150 | M11: 1150
A12: Veranstaltung zur fachlichen Weiterbildung / Studium | C12: 0 | D12: 0 | E12: 0 | F12: 250 | G12: 0 | H12: 250 | I12: 250 | J12: 0 | K12: =IF(OR(J12>I12,H12+I12<0),MAKRO1(),ROUNDDOWN(I12-J12,-1)) -> 250 | L12: 250 | M12: 250
A13: Allgemeines
A14: Informationen zu Kandidierenden | C14: 0 | D14: 0 | E14: =D14-C14 -> 0 | F14: 0 | G14: 0 | H14: =F14-G14 -> 0 | I14: 0 | J14: =IF(H14<0,IF(I14>0,IF((H14*(-1))>I14,I14,H14*(-1)),0),0) -> 0 | K14: =IF(OR(J14>I14,H14+I14<0),MAKRO1(),ROUNDDOWN(I14-J14,-1)) -> 0 | L14: =IF(H14>0,ROUNDDOWN(H14,-1),0) -> 0 | M14: =(D14-G14+J14)-(C14-F14) -> 0
A15: auswärtige Arbeitstreffen und Tagungen | C15: 0 | D15: 0 | E15: =D15-C15 -> 0 | F15: 2000 | G15: 0 | H15: 2000 | I15: 2000 | J15: 0 | K15: =IF(OR(J15>I15,H15+I15<0),MAKRO1(),ROUNDDOWN(I15-J15,-1)) -> 2000 | L15: 2000 | M15: 2000
A16: Integration (Veranstaltungen zum internen Zusammenhalt) | C16: 0 | D16: 0 | E16: =D16-C16 -> 0 | F16: 500 | G16: 0 | H16: 500 | I16: 340 | J16: 0 | K16: =IF(OR(J16>I16,H16+I16<0),MAKRO1(),ROUNDDOWN(I16-J16,-1)) -> 340 | L16: 500 | M16: 500
A17: StuRa Vollversammlung | B17: 2 | C17: 0 | D17: 0 | E17: =D17-C17 -> 0 | F17: 1000 | G17: 0 | H17: =F17-G17 -> 1000 | I17: 0 | J17: 0 | K17: =IF(OR(J17>I17,H17+I17<0),MAKRO1(),ROUNDDOWN(I17-J17,-1)) -> 0 | L17: 1000 | M17: 1000
A18: StuRa Bekleidung | C18: 0 | D18: 0 | E18: 0 | F18: 2000 | G18: 0 | H18: 2000 | I18: 150 | J18: 0 | K18: =IF(OR(J18>I18,H18+I18<0),MAKRO1(),ROUNDDOWN(I18-J18,-1)) -> 150 | L18: 2000 | M18: 2000
A19: Kennenlern-Veranstaltungen | B19: 2 | C19: 0 | D19: 0 | E19: 0 | F19: 750 | G19: 0 | H19: 750 | I19: 560 | J19: 0 | K19: =IF(OR(J19>I19,H19+I19<0),MAKRO1(),ROUNDDOWN(I19-J19,-1)) -> 560 | L19: 750 | M19: 750
A20: CoCo-Pauschale | C20: 0 | D20: 0 | E20: =D20-C20 -> 0 | F20: 250 | G20: 0 | H20: 250
A21: Gesamtsumme: | C21: =SUM(C4:C20) -> 0 | D21: 0 | E21: 0 | F21: 11900 | G21: 0 | H21: 11900 | I21: 7120 | J21: 0 | K21: 7120 | L21: 11650 | M21: =(D21-G21+J21)-(C21-F21) -> 11900
